bitfinex-derivatives/quotes_ETHF0:USTF0_20251008
["timestamp","ask_amount","ask_price","bid_price","bid_amount"]
[1759950226748,1.18179871,4522.7,4522.1,0.2105]
[1759950226946,0.48559125,4522.6,4522.5,0.347]
[1759950227254,0.70859125,4522.6,4522.5,0.1365]
[1759950227447,0.70859125,4522.6,4522.5,0.4461]
[1759950227647,0.71036509,4522.6,4522.5,0.44805748]
[1759950228650,0.71036509,4522.6,4522.5,0.65855748]
[1759950228854,0.71036509,4522.6,4522.5,0.44805748]
[1759950230062,0.71036509,4522.6,4522.5,0.65855748]
[1759950230252,0.71036509,4522.6,4522.5,0.44805748]
[1759950232155,0.71036509,4522.6,4522.5,0.65855748]
[1759950233055,0.71036509,4522.6,4522.5,0.44805748]
[1759950234560,0.71036509,4522.6,4522.5,0.65855748]
[1759950236456,0.71036509,4522.6,4522.5,0.88145748]
[1759950236855,0.48736509,4522.6,4522.5,0.88145748]
[1759950237055,0.22477384,4522.6,4522.5,0.88145748]
[1759950238751,0.00177384,4522.6,4522.5,0.88145748]
[1759950238953,0.22477384,4522.6,4522.5,0.88145748]
[1759950239656,0.00177384,4522.6,4522.5,0.88145748]
[1759950241755,0.00177384,4522.6,4522.5,1.27937748]
[1759950242059,0.22477384,4522.6,4522.5,1.27937748]
[1759950243045,0.62268384,4522.6,4522.5,0.88145748]
[1759950243252,0.22477384,4522.6,4522.5,0.84597748]
[1759950243450,0.62268384,4522.6,4522.5,0.65855748]
[1759950243755,0.62268384,4522.6,4522.5,1.05647748]
[1759950244057,0.22477384,4522.6,4522.5,1.27937748]
[1759950244452,0.62268384,4522.6,4522.5,0.65855748]
[1759950244653,0.62268384,4522.6,4522.5,0.44805748]
[1759950246964,0.62268384,4522.6,4522.5,0.64805748]
[1759950247167,0.62268384,4522.6,4521.3,0.99505]
[1759950247168,0.1289,4521.6,4521.5,0.0032]
[1759950247467,0.2578,4521.4,4521.3,0.60852]
[1759950247759,0.2578,4521.1,4521.0,0.74505]
[1759950247967,0.3384,4521.1,4521.0,0.1365]
[1759950248160,0.3384,4521.1,4521.0,0.13844379]
[1759950248360,0.3384,4521.1,4521.0,0.00194379]
[1759950248665,3.42497,4521.1,4521.0,0.00194379]
[1759950248860,0.2584,4520.1,4519.9,0.39814]
[1759950249164,0.4814,4520.1,4520.0,1.38120022]
[1759950249368,0.4814,4520.1,4520.0,1.71160022]
[1759950250059,41.0584,4520.8,4520.7,0.2215]
[1759950250259,0.4814,4520.8,4520.7,1.15518]
[1759950250461,0.1292,4520.8,4520.7,1.15518]
[1759950250659,0.3522,4520.8,4520.7,1.15518]
[1759950250965,0.223,4520.8,4520.7,1.35518]
[1759950251457,0.4814,4520.8,4520.7,1.35518]
[1759950251657,0.5621,4520.8,4520.7,0.92848]
[1759950251857,0.3391,4520.8,4520.7,0.92848]
[1759950252066,0.4814,4520.8,4520.7,0.92848]
[1759950252264,0.5621,4520.8,4520.7,0.5304]
[1759950252465,0.5621,4520.8,4520.7,0.2]
[1759950253165,0.39805,4521.0,4520.8,0.3304]
[1759950253366,0.0807,4521.6,4520.9,0.3304]
[1759950253562,2.89496558,4521.4,4521.2,0.3304]
[1759950253759,0.6120299,4521.3,4521.2,0.5519]
[1759950253955,0.1292,4521.8,4521.7,0.94988]
[1759950254164,0.3522,4521.8,4521.7,1.15508]
[1759950254364,0.83509149,4521.8,4521.7,1.15508]
[1759950254667,0.61209149,4521.8,4521.7,1.15508]
[1759950254966,0.3522,4521.8,4521.7,1.15508]
[1759950255562,0.2584,4521.8,4521.7,0.94989]
[1759950255761,0.4814,4521.8,4521.7,0.94989]
[1759950256264,0.4814,4521.8,4521.7,1.15509]
[1759950256771,0.2584,4521.8,4521.7,1.35509]
[1759950256970,0.3522,4521.8,4521.7,1.35509]
[1759950257368,0.4814,4521.8,4521.7,1.35509]
[1759950258068,0.5621,4521.8,4521.7,0.2]
[1759950258367,0.5621,4521.8,4521.7,0.5304]
[1759950258570,0.5621,4521.8,4521.7,0.2]
[1759950259068,0.4814,4521.8,4521.7,0.5304]
[1759950259268,0.4814,4521.8,4521.7,0.7519]
[1759950260367,0.4814,4521.8,4521.7,0.5304]
[1759950260568,0.4814,4521.8,4521.7,0.7519]
[1759950261863,0.4814,4521.8,4521.7,0.9571]
[1759950263267,0.2584,4522.3,4522.2,0.39794]
[1759950263468,0.4814,4522.3,4522.2,1.15504]
[1759950263670,0.3391,4522.1,4522.0,0.4535]
[1759950264372,0.223,4522.3,4521.9,0.39797]
[1759950264373,0.73706,4522.0,4521.9,0.39797]
[1759950264568,0.2584,4521.8,4521.7,1.35509]
[1759950264768,0.1292,4521.8,4521.7,1.35509]
[1759950264975,0.223,4521.8,4521.7,1.35509]
[1759950265161,0.39794,4522.3,4522.1,0.39795]
[1759950265362,0.65808384,4522.6,4522.5,0.1231]
[1759950265569,1.36426888,4522.6,4522.5,0.4535]
[1759950265873,1.44496888,4522.6,4522.5,0.4535]
[1759950266368,0.96635888,4522.6,4522.5,0.72832]
[1759950266571,0.74335888,4522.6,4522.5,0.8802]
[1759950266775,0.00177384,4522.6,4522.5,1.27812]
[1759950266969,0.48317384,4522.6,4522.5,1.27812]
[1759950267386,0.35397384,4522.6,4522.5,1.27812]
[1759950268265,0.1292,4523.3,4523.2,0.4267]
[1759950268469,0.96478956,4523.3,4523.2,1.15495]
[1759950269375,0.96652136,4523.3,4523.2,1.15730686]
[1759950270073,0.96652136,4523.3,4523.2,0.75945686]
[1759950270273,0.96652136,4523.3,4523.2,0.55425686]
[1759950271178,0.96652136,4523.3,4523.2,0.33275686]
[1759950271780,0.96652136,4523.3,4523.2,0.55425686]
[1759950272477,0.74352136,4523.3,4523.2,0.75945686]
[1759950272682,0.96652136,4523.3,4523.2,0.75945686]
[1759950273781,0.96652136,4523.3,4523.2,0.55425686]
[1759950273981,0.96652136,4523.3,4523.2,1.15731686]
[1759950274584,0.48512136,4523.3,4523.2,1.15731686]
[1759950274777,0.3539318,4523.3,4523.2,1.15731686]
[1759950275178,0.1309318,4523.3,4523.2,1.15731686]
[1759950275683,0.3539318,4523.3,4523.2,1.15731686]
[1759950276678,0.3539318,4523.3,4523.2,1.15731686]
[1759950276878,0.4831318,4523.3,4523.2,1.15731686]
[1759950277081,0.5638318,4523.3,4523.2,0.33275686]
[1759950277486,0.4831318,4523.3,4523.2,0.33275686]
[1759950277688,3.46876915,4523.3,4523.2,0.00235686]
[1759950277982,3.38806915,4523.3,4523.2,0.33275686]
[1759950278180,0.2601318,4523.3,4523.2,0.55425686]
[1759950278383,0.4831318,4523.3,4523.2,0.75945686]
[1759950278584,0.96590885,4523.3,4523.2,0.75945686]
[1759950279080,0.70750885,4523.3,4523.2,0.75945686]
[1759950281284,0.48450885,4523.3,4523.2,0.75945686]
[1759950281485,0.2247318,4523.3,4523.2,0.75945686]
[1759950281683,0.0017318,4523.3,4523.2,0.75945686]
[1759950281888,0.2247318,4523.3,4523.2,1.78149261]
[1759950282082,0.2247318,4523.3,4523.2,2.17935261]
[1759950282285,0.0017318,4523.3,4523.2,2.17935261]
[1759950282476,0.2247318,4523.3,4523.2,2.17935261]
[1759950283886,0.3536318,4523.3,4523.2,2.17935261]
[1759950284083,0.4825318,4523.3,4523.2,2.17935261]
[1759950284591,0.2247318,4523.3,4523.2,2.17935261]
[1759950285682,0.0017318,4523.3,4523.2,2.17935261]
[1759950290086,0.7378818,4523.3,4523.2,0.00235686]
[1759950290391,10.15045808,4523.3,4523.2,0.00235686]
[1759950290795,10.15045808,4523.3,4522.2,1.02203575]
[1759950290796,0.3383,4522.3,4522.2,0.39794]
[1759950290991,0.5613,4522.3,4522.2,0.71494]
[1759950291691,0.4808,4522.3,4522.2,0.71670692]
[1759950291993,0.4808,4522.3,4522.2,0.92780692]
[1759950292294,0.4808,4522.3,4522.2,1.94984267]
[1759950293290,0.4808,4522.3,4522.2,1.73874267]
[1759950293488,0.5613,4522.3,4522.2,1.73874267]
[1759950293893,0.4808,4522.3,4522.2,1.94984267]
[1759950294986,0.4808,4522.3,4522.2,1.73874267]
[1759950295295,0.96447017,4522.3,4522.2,0.71670692]
[1759950295493,0.96447017,4522.3,4522.2,0.92780692]
[1759950297308,0.74147017,4522.3,4522.2,1.94984267]
[1759950297495,0.96447017,4522.3,4522.2,1.94984267]
[1759950297995,0.74147017,4522.3,4522.2,1.94984267]
[1759950298196,0.96447017,4522.3,4522.2,1.94984267]
[1759950298401,0.4808,4522.3,4522.2,1.94984267]
[1759950298709,0.2578,4522.3,4522.2,1.94984267]
[1759950298995,0.4808,4522.3,4522.2,1.94984267]
[1759950299701,0.5284818,4523.3,4523.2,0.317]
[1759950299895,0.61523859,4523.3,4523.2,0.7389]
[1759950300197,0.96713859,4523.3,4523.2,0.7389]
[1759950300901,0.2578,4523.1,4523.0,0.83907]
[1759950301093,0.82277828,4523.1,4523.0,0.317]
[1759950301395,0.3383,4522.6,4522.5,0.317]
[1759950301596,0.2578,4522.3,4522.2,0.71670692]
[1759950301899,0.3383,4522.3,4522.2,0.31876692]
[1759950302094,0.3383,4522.3,4521.7,0.2]
[1759950302095,0.2578,4521.8,4521.7,0.2]
[1759950302300,0.5613,4521.8,4521.7,0.2]
[1759950302790,0.5613,4521.8,4521.7,0.517]
[1759950303797,0.5613,4521.8,4521.7,0.2]
[1759950304799,0.3519,4521.8,4521.7,0.517]
[1759950304995,0.223,4521.8,4521.7,0.9389]
[1759950305301,0.4808,4521.8,4521.7,0.9389]
[1759950306501,0.4808,4521.8,4521.7,0.7281]
[1759950306702,0.5613,4521.8,4521.7,0.517]
[1759950307107,0.4808,4521.8,4521.7,0.517]
[1759950307700,0.0805,4522.6,4521.8,0.317]
[1759950307905,0.65574,4522.3,4522.2,0.92604]
[1759950308206,3.13425499,4522.3,4522.2,1.13684]
[1759950308400,0.4808,4522.3,4522.2,1.13684]
[1759950309303,0.2578,4522.3,4522.2,1.13684]
[1759950309601,0.2578,4522.3,4522.2,0.5281]
[1759950309801,0.4808,4522.3,4522.2,0.5281]
[1759950310302,0.3384,4521.8,4521.7,0.2]
[1759950310603,0.9948,4522.6,4521.7,0.2]
[1759950310604,0.0806,4522.7,4521.8,0.3402]
[1759950310803,0.65575,4522.2,4522.1,0.5544]
[1759950311604,0.2578,4521.8,4521.7,0.93819]
[1759950311804,0.4808,4521.8,4521.7,0.93819]
[1759950312208,0.87878,4521.8,4521.7,1.15239]
[1759950312407,0.4808,4521.8,4521.7,1.37059]
[1759950312708,0.4808,4521.8,4521.7,0.7544]
[1759950314409,0.95938,4521.8,4521.7,0.2]
[1759950314811,3.88009521,4521.8,4521.7,0.2]
[1759950316507,4.3640232,4521.8,4521.7,0.2]
[1759950322313,4.3640232,4521.8,4519.1,1.99111]
[1759950322314,0.39804,4521.1,4520.2,0.99531]
[1759950322619,0.3384,4520.6,4520.5,0.86249]
[1759950322810,0.5614,4520.6,4520.5,0.86249]
[1759950323212,0.4808,4520.6,4520.5,0.86249]
[1759950323714,0.4808,4520.6,4520.5,1.07669]
[1759950324413,0.4808,4520.6,4520.5,1.29489]
[1759950326412,2.26622012,4520.6,4520.5,1.29489]
[1759950330719,2.04322012,4520.6,4520.5,1.29489]
[1759950331015,0.1289,4521.3,4521.2,1.17062]
[1759950331213,0.1289,4521.9,4521.8,0.83038]
[1759950331413,0.96734711,4521.9,4521.8,1.17058]
[1759950332120,0.83844711,4521.9,4521.8,1.17058]
[1759950332716,0.96734711,4521.9,4521.8,1.17058]
[1759950332917,0.96734711,4521.9,4521.8,0.95238]
[1759950333817,0.0806,4521.8,4521.2,0.3402]
[1759950334016,0.2578,4521.8,4521.7,0.73819]
[1759950334211,0.74461932,4521.8,4521.7,0.73819]
[1759950334621,0.74461932,4521.8,4521.7,0.95239]
[1759950335021,0.61571932,4521.8,4521.7,1.17059]
[1759950335319,0.2578,4522.3,4522.2,0.61214]
[1759950335621,1.04825485,4522.3,4522.2,0.3402]
[1759950337719,0.96765485,4522.3,4522.2,0.7726]
[1759950339218,0.48685485,4522.3,4522.2,0.7726]
[1759950339417,0.1295,4523.1,4523.0,0.74877]
[1759950339623,0.3525,4523.1,4523.0,1.27547]
[1759950339823,0.0017318,4523.3,4523.2,1.14816]
[1759950340024,0.2247318,4523.3,4523.2,1.14816]
[1759950340615,0.1312318,4523.3,4523.2,1.14816]
[1759950340819,0.4837318,4523.3,4523.2,1.14816]
[1759950341021,0.259,4522.8,4522.7,0.7181]
[1759950341226,0.482,4522.8,4522.7,0.5438]
[1759950341422,0.3525,4522.8,4522.7,0.7503]
[1759950341628,0.1312318,4523.3,4523.2,0.7503]
[1759950341924,0.4837318,4523.3,4523.2,0.7503]
[1759950342126,0.3399,4523.1,4523.0,0.4475]
[1759950342329,0.259,4523.1,4523.0,0.6693]
[1759950343933,0.3379,4522.7,4522.6,0.3185]
[1759950344134,0.4804,4522.7,4522.6,0.5291]
[1759950344431,0.4804,4522.7,4522.6,0.7517]
[1759950345132,0.1287,4522.3,4522.0,0.1332]
[1759950345431,0.2574,4522.1,4522.0,0.53116]
[1759950345729,0.2574,4522.1,4522.0,1.06026]
[1759950346432,0.2574,4522.1,4521.0,0.6546]
[1759950346433,0.2574,4521.1,4521.0,0.6546]
[1759950346632,0.4804,4521.1,4521.0,0.6546]
[1759950346827,0.4804,4521.1,4521.0,0.8772]
[1759950348833,0.87844,4521.1,4521.0,0.8772]
[1759950349033,0.95894,4521.1,4521.0,0.444]
[1759950349430,0.87844,4521.1,4521.0,0.444]
[1759950349731,0.87844,4521.1,4521.0,0.6546]
[1759950350033,0.87844,4521.1,4521.0,0.444]
[1759950350230,0.73599,4520.6,4520.3,0.39811]
[1759950350429,0.4804,4520.5,4520.4,0.3185]
[1759950350634,0.4804,4520.5,4520.4,0.5291]
[1759950351235,0.4804,4520.5,4520.4,0.3185]
[1759950351736,0.1287,4521.2,4521.1,0.60864]
[1759950351930,0.4804,4521.2,4521.1,0.83124]
[1759950352234,0.4804,4521.2,4521.1,0.75330489]
[1759950352832,0.4804,4521.2,4521.1,0.53070489]
[1759950353935,0.4804,4521.2,4521.1,0.32010489]
[1759950354833,0.2574,4521.2,4521.1,0.53070489]
[1759950355025,0.4804,4521.2,4521.1,0.53070489]
[1759950355529,0.4804,4521.2,4521.1,0.32010489]
[1759950357235,0.2574,4521.2,4521.1,0.53070489]
[1759950357429,0.4804,4521.2,4521.1,0.53070489]
[1759950357629,0.5609,4521.2,4521.1,0.00160489]
[1759950358036,0.5609,4521.2,4521.1,0.32010489]
[1759950358236,0.4804,4521.2,4521.1,0.32010489]
[1759950358436,0.4804,4521.2,4521.1,0.53070489]
[1759950359338,0.2574,4521.2,4521.1,0.75330489]
[1759950359534,1.58231608,4523.0,4521.1,0.75330489]
[1759950359535,0.0805,4522.4,4521.5,0.1255]
[1759950359838,0.1287,4522.1,4522.0,0.95665]
[1759950360039,0.1287,4522.1,4522.0,1.27515]
[1759950360735,0.2574,4522.1,4522.0,0.8772]
[1759950361035,0.3379,4522.1,4522.0,0.444]
[1759950361240,0.2574,4522.1,4522.0,0.444]
[1759950363737,0.2574,4522.1,4522.0,0.6546]
[1759950365041,0.2574,4522.1,4521.1,0.00160489]
[1759950365042,0.2574,4521.7,4521.4,5.364]
[1759950365238,0.73591,4521.5,4521.4,5.364]
[1759950365634,0.3379,4521.5,4521.4,5.364]
[1759950365834,0.2574,4521.5,4521.4,6.1157]
[1759950366036,41.79473,4522.9,4522.1,0.7517]
[1759950366037,0.2574,4522.2,4522.1,0.7517]
[1759950366240,0.96296217,4522.2,4522.1,0.7517]
[1759950366440,0.96296217,4522.2,4522.1,0.5291]
[1759950367149,0.87835,4522.2,4522.1,0.5291]
[1759950367647,0.87835,4522.2,4522.1,0.3185]
[1759950368441,1.36094418,4522.2,4522.1,0.3185]
[1759950368647,1.36094418,4522.2,4522.1,1.13525]
[1759950368848,1.36094418,4522.2,4522.1,0.7373]
[1759950369144,1.36094418,4522.2,4522.1,0.5291]
[1759950369547,1.13794418,4522.2,4522.1,0.5291]
[1759950369748,1.36094418,4522.2,4522.1,0.5291]
[1759950373442,1.36094418,4522.2,4522.1,0.3185]
[1759950373646,0.65578,4521.8,4521.7,0.5345]
[1759950373847,1.13837418,4521.8,4521.7,0.5345]
[1759950374047,1.13837418,4521.8,4521.7,0.93249]
[1759950374249,0.74039418,4521.8,4521.7,0.93249]
[1759950375149,0.74039418,4521.8,4521.7,1.14069]
[1759950375552,0.96339418,4521.8,4521.7,1.14069]
[1759950376152,0.74039418,4521.8,4521.7,1.14069]
[1759950376346,0.96339418,4521.8,4521.7,1.14069]
[1759950376552,0.74039418,4521.8,4521.7,1.14069]
[1759950376848,0.398,4521.6,4521.5,5.364]
[1759950377053,0.3384,4521.5,4521.4,0.72042]
[1759950377351,0.82099418,4521.5,4521.4,0.72042]
[1759950377540,0.74039418,4521.5,4521.4,0.72042]
[1759950377940,1.13840418,4521.5,4521.4,0.72042]
[1759950378156,1.21900418,4521.5,4521.4,0.72042]
[1759950378449,1.21900418,4521.5,4521.4,0.3224]
[1759950378952,0.74039418,4521.5,4521.4,0.93252]
[1759950379654,1.13840418,4521.5,4521.4,0.93252]
[1759950380754,1.13840418,4521.5,4521.4,0.5345]
[1759950381550,1.13840418,4521.5,4521.4,0.93252]
[1759950382656,1.21900418,4521.5,4521.4,0.72042]
[1759950382852,1.21900418,4521.5,4521.4,0.3224]
[1759950383061,0.74039418,4521.5,4521.4,0.93252]
[1759950383256,0.74039418,4521.5,4521.4,1.14072]
[1759950384355,1.13840418,4521.5,4521.4,1.14072]
[1759950384553,1.13840418,4521.5,4521.4,0.5345]
[1759950384753,1.44200418,4521.5,4521.4,0.72042]
[1759950384961,1.44200418,4521.5,4521.4,0.3224]
[1759950385163,0.73643,4521.2,4521.1,0.00160489]
[1759950385357,0.82099418,4521.2,4521.1,0.72204489]
[1759950385558,3.593641,4521.2,4521.1,1.14234489]
[1759950385852,0.2578,4522.2,4522.1,0.5345]
[1759950386052,0.4808,4522.2,4522.1,1.55739747]
[1759950386261,0.4808,4522.2,4522.1,1.76559747]
[1759950386459,0.87875,4522.2,4521.9,0.3224]
[1759950386660,0.87875,4522.2,4521.5,0.1329]
[1759950386661,0.1289,4521.6,4521.5,1.97410747]
[1759950386860,0.3519,4521.6,4521.5,1.97410747]
[1759950387059,0.223,4521.6,4521.5,1.97410747]
[1759950387260,0.223,4521.6,4521.5,2.29650747]
[1759950388261,0.39794,4522.3,4522.1,0.39795]
[1759950388465,0.4808,4522.2,4522.1,0.72035]
[1759950388664,3.39845868,4522.2,4522.1,0.72035]
[1759950389159,3.47905868,4522.2,4522.1,0.3224]
[1759950389358,3.17545868,4522.2,4522.1,0.5345]
[1759950389559,0.4808,4522.2,4522.1,0.7427]
[1759950390258,0.4808,4522.2,4522.1,0.3224]
[1759950390463,0.5614,4522.2,4522.1,0.3224]
[1759950391954,0.3384,4521.8,4521.7,0.3224]
[1759950392157,0.5614,4521.8,4521.7,0.3224]
[1759950392463,0.5614,4521.8,4521.7,1.14069]
[1759950392464,0.3519,4521.8,4521.7,1.14069]
[1759950393266,0.4808,4521.8,4521.7,1.14069]
[1759950393667,0.4808,4521.8,4521.7,0.93249]
[1759950394363,0.4808,4521.8,4521.7,0.72039]
[1759950394568,0.5614,4521.8,4521.7,0.72039]
[1759950394957,0.4808,4521.8,4521.7,0.72039]
[1759950395863,0.4808,4521.8,4521.4,2.01794747]
[1759950395864,0.4808,4521.8,4521.3,0.3224]
[1759950396161,0.2578,4521.2,4521.1,0.72204489]
[1759950396466,0.4808,4521.2,4521.1,0.93414489]
[1759950396861,0.5614,4521.2,4521.1,0.72204489]
[1759950397059,3.89443937,4521.2,4521.1,0.00160489]
[1759950397266,4.91733684,4521.2,4521.1,0.00160489]
[1759950397767,5.39924563,4521.2,4521.1,0.00160489]
[1759950398163,10.39924563,4521.2,4521.1,0.00160489]
[1759950398358,9.37634816,4521.2,4521.1,0.00160489]
[1759950398570,10.39924563,4521.2,4521.1,0.00160489]
[1759950398770,51.19924563,4521.2,4521.1,0.00160489]
[1759950399070,49.77831816,4521.2,4521.1,0.39964489]
[1759950399669,49.77831816,4521.2,4521.1,0.00160489]
[1759950402067,0.48190879,4521.2,4521.1,1.77470236]
[1759950402264,1.16985037,4522.7,4521.1,1.77470236]
[1759950402265,1.18179871,4522.3,4522.2,0.61495]
[1759950402570,0.2586,4522.7,4522.6,1.15491]
[1759950402770,0.4816,4522.7,4522.6,1.15491]
[1759950402967,0.2586,4522.7,4522.6,1.15491]
[1759950403164,0.4816,4522.7,4522.6,2.17780747]
[1759950404175,0.0017318,4523.3,4523.2,0.2061]
[1759950404470,0.0017318,4523.3,4523.2,0.5206]
[1759950404471,3.26954686,4523.3,4523.2,0.5206]
[1759950404674,3.26954686,4523.3,4523.2,0.741]
[1759950405064,3.39854686,4523.3,4523.2,0.741]
[1759950405670,3.39854686,4523.3,4523.2,0.5206]
[1759950405868,0.258,4523.1,4522.8,0.39789]
[1759950406069,0.3386,4522.7,4522.5,0.1353]
[1759950406372,0.481,4522.6,4522.5,0.53321]
[1759950406771,0.481,4522.6,4522.5,0.4498]
[1759950406969,1.58449747,4522.6,4522.3,0.39793]
[1759950407167,0.258,4522.4,4522.3,0.71243]
[1759950407974,0.258,4522.4,4522.3,0.91853]
[1759950408175,0.48,4522.4,4522.3,0.91853]
[1759950409075,0.48,4522.4,4522.3,0.71243]
[1759950409275,0.5606,4522.4,4522.3,0.71243]
[1759950409471,0.129,4521.6,4521.5,0.4498]
[1759950409666,0.1311,4521.5,4520.3,1.58353411]
[1759950409872,1.76869747,4520.9,4520.0,1.71253411]
[1759950410071,0.7458,4520.1,4520.0,0.73324]
[1759950410275,0.6486,4520.1,4520.0,1.97653747]
[1759950410475,0.4314,4520.1,4520.0,1.97653747]
[1759950410677,0.43379071,4520.1,4520.0,1.97913892]
[1759950410866,0.65099071,4520.1,4520.0,1.85013892]
[1759950411072,0.97019071,4520.1,4520.0,0.60684145]
[1759950411774,0.97019071,4520.1,4520.0,0.92134145]
[1759950412173,0.97019071,4520.1,4520.0,1.14174145]
[1759950412978,0.00239071,4520.1,4520.0,6.27074145]
[1759950413273,0.43379071,4520.1,4520.0,6.27074145]
[1759950413977,0.22439071,4520.1,4520.0,6.27074145]
[1759950414473,0.00239071,4520.1,4520.0,6.27074145]
[1759950419378,7.1e-07,4520.1,4520.0,6.27074145]
[1759950424781,7.1e-07,4520.1,4520.0,1.14174145]
[1759950424782,0.74580071,4520.1,4520.0,1.14174145]
[1759950425282,0.74580071,4520.1,4520.0,0.40074145]
[1759950425476,0.74580071,4520.1,4520.0,1.14174145]
[1759950425682,7.1e-07,4520.1,4520.0,0.95624145]
[1759950425981,0.20940071,4520.1,4520.0,0.95624145]
[1759950426182,0.20940071,4520.1,4520.0,1.27074145]
[1759950428687,7.1e-07,4520.1,4520.0,1.27074145]
[1759950428886,7.1e-07,4520.1,4520.0,0.95624145]
[1759950429580,0.21990071,4520.1,4520.0,0.95624145]
[1759950429979,0.21990071,4520.1,4520.0,1.29214145]
[1759950430381,0.3351,4520.5,4520.4,0.3981]
[1759950430577,0.7578,4521.3,4521.2,0.39803]
[1759950430781,1.85791413,4521.3,4521.2,0.39803]
[1759950431087,45.58156983,4521.3,4521.2,0.39803]
[1759950431481,45.58392595,4521.3,4521.2,0.39803]
[1759950431976,45.18589595,4521.3,4521.2,0.39803]
[1759950432686,44.96389595,4521.3,4521.2,0.39803]
[1759950432886,4.16389595,4521.3,4521.2,0.39803]
[1759950433094,3.68381182,4521.3,4521.2,0.94713]
[1759950433393,3.90581182,4521.3,4521.2,0.94713]
[1759950433684,0.67175612,4521.3,4521.2,1.16853]
[1759950434485,0.00235612,4521.3,4521.2,1.16853]
[1759950434791,6.12e-06,4521.3,4521.2,6.16853]
[1759950435086,6.12e-06,4521.3,4521.2,1.16853]
[1759950439195,0.7578,4522.9,4522.8,0.61109]
[1759950439386,0.48084702,4522.9,4522.8,1.16839]
[1759950439588,0.70284702,4522.9,4522.8,1.16839]
[1759950439883,1.15024702,4522.9,4522.8,1.16839]
[1759950440085,6.46064702,4522.9,4522.8,0.39789]
[1759950440290,6.46239193,4522.9,4522.8,0.39789]
[1759950441194,5.98154491,4522.9,4522.8,0.39789]
[1759950441390,0.44914491,4522.9,4522.8,1.16839]
[1759950441690,0.98154491,4522.9,4522.8,0.94699]
[1759950441988,0.44914491,4522.9,4522.8,1.16839]
[1759950442294,0.22374491,4522.9,4522.8,1.16839]
[1759950442682,0.98154491,4522.9,4522.8,1.16839]
[1759950443588,0.98154491,4522.9,4522.5,0.1239]
[1759950443794,0.7578,4522.4,4522.3,0.94704]
[1759950444089,0.4474,4522.4,4522.3,0.94704]
[1759950444395,0.22374491,4522.9,4522.5,1.11871]
[1759950444587,0.22374491,4522.9,4522.8,0.2132]
[1759950444792,0.44364491,4522.9,4522.8,1.16839]
[1759950444982,0.98154491,4522.9,4522.8,1.16839]
[1759950446292,0.98154491,4522.9,4522.8,0.94699]
[1759950446995,0.98154491,4522.9,4522.8,0.73379]
[1759950447294,0.2199,4522.1,4522.0,0.4598]
[1759950447491,0.9798,4522.1,4522.0,0.73386]
[1759950447690,0.9798,4522.1,4522.0,1.07096]
[1759950447887,0.6694,4522.1,4522.0,1.29236]
[1759950448492,0.9798,4522.1,4522.0,1.29236]
[1759950448995,0.6694,4522.1,4522.0,1.29236]
[1759950450796,0.4419,4522.1,4522.0,1.29236]
[1759950450999,0.6694,4522.1,4522.0,1.29236]
[1759950453000,0.9798,4522.1,4522.0,0.94706]
[1759950453507,0.9798,4522.1,4522.0,0.39796]
[1759950453909,0.7578,4521.3,4521.2,0.73393]
[1759950454100,0.7578,4521.3,4521.2,0.39803]
[1759950455803,0.7578,4521.3,4521.2,0.73393]
[1759950456000,0.7578,4521.3,4521.2,0.39803]
[1759950456508,0.4474,4521.3,4521.2,0.94713]
[1759950458311,0.7578,4521.3,4521.2,0.94713]
[1759950458804,0.222,4521.4,4521.2,0.7705]
[1759950459004,0.4494,4521.4,4521.3,1.15063]
[1759950459607,0.39796,4522.0,4521.9,0.99493]
[1759950459608,0.2089,4522.0,4521.9,0.99493]
[1759950459806,0.6583,4522.0,4521.9,0.94187]
[1759950460011,1.13821005,4522.0,4521.9,0.94187]
[1759950460512,1.13821005,4522.0,4521.9,1.15057]
[1759950461906,1.44841005,4522.0,4521.9,0.94187]
[1759950462210,1.22641005,4522.0,4521.9,0.94187]
[1759950462405,1.44841005,4522.0,4521.9,0.94187]
[1759950462910,1.44841005,4522.0,4521.9,0.72087]
[1759950463608,1.22641005,4522.0,4521.9,0.93977]
[1759950463810,1.44841005,4522.0,4521.9,0.93977]
[1759950467411,1.13821005,4522.0,4521.9,1.14587]
[1759950468618,0.91621005,4522.0,4521.9,1.14587]
[1759950468914,1.13821005,4522.0,4521.9,1.14587]
[1759950470106,1.44841005,4522.0,4521.9,0.93977]
[1759950470508,0.7258,4521.9,4521.8,0.39798]
[1759950470810,1.20571005,4521.9,4521.8,0.39798]
[1759950471409,1.20571005,4521.9,4521.8,0.70788]
[1759950471607,1.20571005,4521.9,4521.8,0.92678]
[1759950472412,0.89551005,4521.9,4521.8,1.13288]
[1759950472611,1.20571005,4521.9,4521.8,1.13288]
[1759950473115,1.20571005,4521.9,4521.8,0.70788]
[1759950473709,1.20571005,4521.9,4521.8,0.92678]
[1759950475007,1.20571005,4521.9,4521.8,0.39798]
[1759950476107,1.20571005,4521.9,4521.8,0.92678]
[1759950477419,1.20571005,4521.9,4521.8,0.39798]
[1759950477721,1.20571005,4521.9,4521.8,0.70788]
[1759950478414,1.20571005,4521.9,4521.8,0.39798]
[1759950479214,0.3102,4521.5,4521.2,0.3099]
[1759950479416,0.7258,4521.3,4521.2,0.70793]
[1759950479615,0.7258,4521.3,4521.2,0.39803]
[1759950480017,0.7258,4521.3,4521.2,0.70793]
[1759950480217,1.12383,4521.3,4521.2,0.39803]
[1759950480518,0.7258,4521.1,4521.0,0.92684]
[1759950480717,0.7258,4521.1,4521.0,1.05574]
[1759950481020,0.7258,4521.1,4521.0,0.92684]
[1759950481220,0.7258,4521.1,4521.0,0.39804]
[1759950481425,1.12384,4521.1,4521.0,0.39804]
[1759950481820,0.7258,4521.1,4521.0,0.39804]
[1759950482125,0.7258,4521.1,4521.0,0.92684]
[1759950483224,1.20646925,4521.1,4521.0,0.92684]
[1759950484326,0.7258,4521.1,4521.0,0.92684]
[1759950486432,1.12384,4521.1,4521.0,0.39804]
[1759950487121,1.12384,4521.1,4521.0,0.70794]